fUSD/lending_fUSD_20250606
["ID","MTS","AMOUNT","RATE_DAILY","PERIOD"]
[364660532,1749187852546,-151.0,0.00030164,7]
[364660533,1749187852556,-488.22,0.00030164,7]
[364660534,1749187852566,-151.0,0.00030164,7]
[364660535,1749187852575,-499.12857982,0.00030164,7]
[364660536,1749187852584,-480.0,0.00030164,7]
[364660537,1749187852593,-480.0,0.00030164,7]
[364660538,1749187852603,-483.61035138,0.00030164,7]
[364660539,1749187852613,-480.0,0.00030164,7]
[364660540,1749187852623,-483.60662542,0.00030164,7]
[364660541,1749187852632,-480.0,0.00030164,7]
[364660542,1749187852643,-480.0,0.00030164,7]
[364660543,1749187852652,-485.57084507,0.00030164,7]
[364660544,1749187852661,-482.98620982,0.00030164,7]
[364660545,1749187852671,-483.39354451,0.00030164,7]
[364660546,1749187852680,-480.0,0.00030164,7]
[364660547,1749187852690,-151.0,0.00030164,7]
[364660548,1749187852699,-151.0,0.00030164,7]
[364660549,1749187852709,-484.50598563,0.00030164,7]
[364660550,1749187852719,-151.0,0.00030164,7]
[364660551,1749187852729,-493.19373307,0.00030164,7]
[364660552,1749187852738,-151.0,0.00030164,7]
[364660553,1749187852748,-439.50307822,0.00030164,7]
[364660554,1749187852758,-151.0,0.00030164,7]
[364660555,1749187852768,-159.419508,0.00030164,7]
[364660556,1749187852777,-501.21713607,0.00030164,7]
[364660557,1749187852787,-484.27539449,0.00030164,7]
[364660558,1749187852796,-500.09842453,0.00030164,7]
[364660559,1749187852807,-151.921268,0.00030164,7]
[364660560,1749187852816,-480.0,0.00030164,7]
[364660561,1749187852826,-480.0,0.00030164,7]
[364660562,1749187852835,-151.921268,0.00030164,7]
[364660563,1749187852845,-151.921268,0.00030164,7]
[364660564,1749187852855,-151.921268,0.00030164,7]
[364660565,1749187852865,-482.21640135,0.00030164,7]
[364660566,1749187852874,-488.21016514,0.00030164,7]
[364660567,1749187852885,-151.921268,0.00030164,7]
[364660568,1749187852894,-151.921268,0.00030164,7]
[364660569,1749187852904,-151.921268,0.00030164,7]
[364660570,1749187852914,-486.05339023,0.00030164,7]
[364660571,1749187852924,-491.37578586,0.00030164,7]
[364660572,1749187852933,-151.921268,0.00030164,7]
[364660573,1749187852942,-1010.76,0.00030164,7]
[364660574,1749187852954,-151.921268,0.00030164,7]
[364660575,1749187852963,-151.921268,0.00030164,7]
[364660576,1749187852974,-480.0,0.00030164,7]
[364660577,1749187852984,-151.921268,0.00030164,7]
[364660578,1749187852994,-151.921268,0.00030164,7]
[364660579,1749187853003,-151.921268,0.00030164,7]
[364660580,1749187853013,-151.921268,0.00030164,7]
[364660581,1749187853022,-480.0,0.00030164,7]
[364660582,1749187853033,-480.0,0.00030164,7]
[364660583,1749187853044,-480.0,0.00030164,7]
[364660584,1749187853053,-480.0,0.00030164,7]
[364660585,1749187853064,-480.0,0.00030164,7]
[364660586,1749187853074,-1656.20892,0.00030164,7]
[364660587,1749187853084,-1656.20892,0.00030164,7]
[364660588,1749187853093,-480.0,0.00030164,7]
[364660589,1749187853103,-1656.20892,0.00030164,7]
[364660590,1749187853112,-376.46533036,0.00030164,7]
[364660591,1749187853121,-1656.20892,0.00030164,7]
[364660592,1749187853130,-2000.0,0.00030164,30]
[364660593,1749187853139,-1656.20892,0.00030164,7]
[364660594,1749187853149,-495.38243071,0.00030164,7]
[364660595,1749187853159,-422.24263036,0.00030164,7]
[364660596,1749187853169,-483.65982622,0.00030164,7]
[364660597,1749187853179,-1656.20892,0.00030164,7]
[364660598,1749187853188,-1656.20892,0.00030164,7]
[364660599,1749187853198,-1656.20892,0.00030164,7]
[364660600,1749187853208,-901.12,0.00030164,7]
[364660601,1749187853217,-480.0,0.00030164,7]
[364660602,1749187853227,-1656.20892,0.00030164,7]
[364660603,1749187853238,-221.5068644,0.00030164,7]
[364660604,1749187853248,-498.67864343,0.00030164,7]
[364660605,1749187853257,-480.0,0.00030164,7]
[364660606,1749187853267,-1656.20892,0.00030164,7]
[364660607,1749187853277,-486.17086105,0.00030164,7]
[364660608,1749187853287,-151.0,0.00030164,7]
[364660609,1749187853297,-151.0,0.00030164,7]
[364660610,1749187853307,-151.0,0.00030164,7]
[364660611,1749187853317,-151.0,0.00030164,7]
[364660612,1749187853329,-151.0,0.00030164,7]
[364660613,1749187853339,-151.0,0.00030164,7]
[364660614,1749187853348,-151.0,0.00030164,7]
[364660615,1749187853359,-480.0,0.00030164,7]
[364660616,1749187853369,-488.19165287,0.00030164,7]
[364660617,1749187853379,-151.0,0.00030164,7]
[364660618,1749187853389,-151.0,0.00030164,7]
[364660619,1749187853400,-494.04549238,0.00030164,7]
[364660620,1749187853411,-151.0,0.00030164,7]
[364660621,1749187853420,-453.66251753,0.00030164,7]
[364660622,1749187853430,-514.85598408,0.00030164,7]
[364660623,1749187853440,-151.0,0.00030164,7]
[364660624,1749187853449,-293.940487,0.00030164,7]
[364660625,1749187853459,-480.0,0.00030164,7]
[364660626,1749187853470,-497.91429533,0.00030164,7]
[364660627,1749187853480,-480.0,0.00030164,7]
[364660628,1749187853489,-480.0,0.00030164,7]
[364660629,1749187853499,-480.0,0.00030164,7]
[364660630,1749187853509,-302.18241063,0.00030164,7]
[364660631,1749187853519,-480.0,0.00030164,7]
[364660632,1749187853528,-480.0,0.00030164,7]
[364660633,1749187853538,-480.0,0.00030164,7]
[364660634,1749187853547,-480.0,0.00030164,7]
[364660635,1749187853558,-480.0,0.00030164,7]
[364660636,1749187853568,-151.0,0.00030164,7]
[364660637,1749187853578,-151.118879,0.00030164,7]
[364660638,1749187853587,-480.0,0.00030164,7]
[364660639,1749187853597,-561.74,0.00030164,7]
[364660640,1749187853608,-480.0,0.00030164,7]
[364660641,1749187853617,-151.0,0.00030164,7]
[364660642,1749187853627,-151.0,0.00030164,7]
[364660643,1749187853636,-480.0,0.00030164,7]
[364660644,1749187853646,-151.0,0.00030164,7]
[364660645,1749187853656,-480.0,0.00030164,7]
[364660646,1749187853666,-151.0,0.00030164,7]
[364660647,1749187853677,-151.0,0.00030164,7]
[364660648,1749187853687,-151.0,0.00030164,7]
[364660649,1749187853697,-157.000071,0.00030164,7]
[364660650,1749187853707,-480.0,0.00030164,7]
[364660651,1749187853716,-480.0,0.00030164,7]
[364660652,1749187853726,-151.0,0.00030164,7]
[364660653,1749187853736,-480.0,0.00030164,7]
[364660654,1749187853746,-480.0,0.00030164,7]
[364660655,1749187853755,-151.0,0.00030164,7]
[364660656,1749187853765,-169.0454,0.00030164,7]
[364660657,1749187853775,-480.0,0.00030164,7]
[364660658,1749187853785,-154.14598,0.00030164,7]
[364660659,1749187853796,-483.18040379,0.00030164,7]
[364660660,1749187853806,-480.0,0.00030164,7]
[364660661,1749187853816,-480.0,0.00030164,7]
[364660662,1749187853825,-480.0,0.00030164,7]
[364660663,1749187853835,-486.75731355,0.00030164,7]
[364660664,1749187853845,-485.37750756,0.00030164,7]
[364660665,1749187853854,-485.15260186,0.00030164,7]
[364660666,1749187853864,-493.41407649,0.00030164,7]
[364660667,1749187853874,-341.80124131,0.00030164,7]
[364660668,1749187853884,-480.0,0.00030164,7]
[364660669,1749187853893,-480.0,0.00030164,7]
[364660670,1749187853903,-437.21622927,0.00030164,7]
[364660671,1749187853913,-480.0,0.00030164,7]
[364660672,1749187853923,-151.0,0.00030164,7]
[364660673,1749187853935,-151.0,0.00030164,7]
[364660674,1749187853945,-151.0,0.00030164,7]
[364660675,1749187853955,-489.87378188,0.00030164,7]
[364660676,1749187853965,-480.0,0.00030164,7]
[364660677,1749187853976,-151.0,0.00030164,7]
[364660678,1749187853985,-496.95405679,0.00030164,7]
[364660679,1749187853995,-151.0,0.00030164,7]
[364660680,1749187854005,-151.0,0.00030164,7]
[364660681,1749187854014,-168.574258,0.00030164,7]
[364660682,1749187854024,-480.0,0.00030164,7]
[364660683,1749187854034,-480.0,0.00030164,7]
[364660684,1749187854043,-480.0,0.00030164,7]
[364660685,1749187854052,-480.0,0.00030164,7]
[364660686,1749187854062,-480.0,0.00030164,7]
[364660687,1749187854072,-479.90748943,0.00030164,7]
[364660688,1749187854082,-480.0,0.00030164,7]
[364660689,1749187854092,-482.19885845,0.00030164,7]
[364660690,1749187854101,-480.0,0.00030164,7]
[364660691,1749187854111,-484.51187732,0.00030164,7]
[364660692,1749187854121,-480.0,0.00030164,7]
[364660693,1749187854130,-480.0,0.00030164,7]
[364660694,1749187854140,-480.0,0.00030164,7]
[364660695,1749187854150,-480.0,0.00030164,7]
[364660696,1749187854160,-480.0,0.00030164,7]
[364660697,1749187854171,-480.0,0.00030164,7]
[364660698,1749187854181,-480.0,0.00030164,7]
[364660699,1749187854190,-480.0,0.00030164,7]
[364660700,1749187854200,-497.07365701,0.00030164,7]
[364660701,1749187854210,-480.0,0.00030164,7]
[364660702,1749187854220,-480.0,0.00030164,7]
[364660703,1749187854230,-481.55726094,0.00030164,7]
[364660704,1749187854239,-480.0,0.00030164,7]
[364660705,1749187854249,-480.0,0.00030164,7]
[364660706,1749187854258,-500.0,0.00030164,7]
[364660707,1749187854268,-480.0,0.00030164,7]
[364660708,1749187854277,-480.0,0.00030164,7]
[364660709,1749187854287,-500.0,0.00030164,7]
[364660710,1749187854297,-486.47232307,0.00030164,7]
[364660711,1749187854307,-480.0,0.00030164,7]
[364660712,1749187854317,-480.0,0.00030164,7]
[364660713,1749187854328,-500.0,0.00030164,7]
[364660714,1749187854340,-480.0,0.00030164,7]
[364660715,1749187854349,-480.0,0.00030164,7]
[364660716,1749187854359,-489.21303701,0.00030164,7]
[364660717,1749187854371,-480.0,0.00030164,7]
[364660718,1749187854381,-151.0,0.00030164,7]
[364660719,1749187854391,-151.0,0.00030164,7]
[364660720,1749187854400,-500.0,0.00030164,2]
[364660721,1749187854410,-500.0,0.00030164,2]
[364660722,1749187854419,-151.0,0.00030164,7]
[364660723,1749187854429,-500.0,0.00030164,2]
[364660724,1749187854439,-480.0,0.00030164,7]
[364660725,1749187854448,-500.0,0.00030164,2]
[364660726,1749187854458,-500.0,0.00030164,2]
[364660727,1749187854468,-500.0,0.00030164,2]
[364660728,1749187854478,-500.0,0.00030164,2]
[364660729,1749187854487,-500.0,0.00030164,2]
[364660730,1749187854497,-480.0,0.00030164,7]
[364660731,1749187854507,-500.0,0.00030164,2]
[364660732,1749187854518,-502.53812426,0.00030164,2]
[364660733,1749187854529,-483.35483192,0.00030164,7]
[364660734,1749187854539,-480.0,0.00030164,7]
[364660735,1749187854549,-480.0,0.00030164,7]
[364660736,1749187854560,-480.0,0.00030164,7]
[364660737,1749187854570,-480.0,0.00030164,7]
[364660738,1749187854581,-480.0,0.00030164,7]
[364660739,1749187854591,-480.0,0.00030164,7]
[364660740,1749187854600,-484.33830044,0.00030164,7]
[364660741,1749187854612,-480.0,0.00030164,7]
[364660742,1749187854622,-480.0,0.00030164,7]
[364660743,1749187854709,-480.0,0.00030164,7]
[364660744,1749187854719,-486.02065922,0.00030164,7]
[364660745,1749187854729,-487.19512927,0.00030164,7]
[364660746,1749187854739,-480.0,0.00030164,7]
[364660747,1749187854749,-502.36948059,0.00030164,7]
[364660748,1749187854759,-490.70700859,0.00030164,7]
[364660749,1749187854769,-480.0,0.00030164,7]
[364660750,1749187854779,-480.0,0.00030164,7]
[364660751,1749187854790,-480.0,0.00030164,7]
[364660752,1749187854800,-481.2423928,0.00030164,7]
[364660753,1749187854810,-480.0,0.00030164,7]
[364660754,1749187854820,-480.0,0.00030164,7]
[364660755,1749187854830,-480.0,0.00030164,7]
[364660756,1749187854840,-905.414376,0.00030164,7]
[364660757,1749187854850,-480.0,0.00030164,7]
[364660758,1749187854861,-905.414376,0.00030164,7]
[364660759,1749187854871,-905.414376,0.00030164,7]
[364660760,1749187854881,-905.414376,0.00030164,7]
[364660761,1749187854891,-905.414376,0.00030164,7]
[364660762,1749187854901,-905.414376,0.00030164,7]
[364660763,1749187854911,-905.414376,0.00030164,7]
[364660764,1749187854921,-489.29238845,0.00030164,7]
[364660765,1749187854930,-486.25828105,0.00030164,7]
[364660766,1749187854940,-905.414376,0.00030164,7]
[364660767,1749187854952,-905.414376,0.00030164,7]
[364660768,1749187854962,-905.414376,0.00030164,7]
[364660769,1749187854972,-480.0,0.00030164,7]
[364660770,1749187854982,-905.414376,0.00030164,7]
[364660771,1749187854992,-480.0,0.00030164,7]
[364660772,1749187855000,-480.0,0.00030164,7]
[364660773,1749187855010,-905.414376,0.00030164,7]
[364660774,1749187855019,-905.414376,0.00030164,7]
[364660775,1749187855029,-905.414383,0.00030164,7]
[364660776,1749187855040,-480.0,0.00030164,7]
[364660777,1749187855050,-480.0,0.00030164,7]
[364660778,1749187855059,-484.01917455,0.00030164,7]
[364660779,1749187855068,-500.0,0.00030164,7]
[364660780,1749187855078,-500.0,0.00030164,7]
[364660781,1749187855088,-500.0,0.00030164,7]
[364660782,1749187855097,-480.0,0.00030164,7]
[364660783,1749187855108,-480.0,0.00030164,7]
[364660784,1749187855118,-500.0,0.00030164,7]
[364660785,1749187855127,-480.0,0.00030164,7]
[364660786,1749187855137,-500.0,0.00030164,7]
[364660787,1749187855147,-151.0,0.00030164,7]
[364660788,1749187855156,-500.0,0.00030164,7]
[364660789,1749187855166,-500.0,0.00030164,7]
[364660790,1749187855176,-151.0,0.00030164,7]
[364660791,1749187855186,-498.46259307,0.00030164,7]
[364660792,1749187855195,-151.0,0.00030164,7]
[364660793,1749187855205,-550.33,0.00030164,7]
[364660794,1749187855214,-162.351034,0.00030164,7]
[364660795,1749187855224,-485.80005832,0.00030164,7]
[364660796,1749187855234,-500.0,0.00030164,7]
[364660797,1749187855243,-500.0,0.00030164,7]
[364660798,1749187855253,-500.0,0.00030164,7]
[364660799,1749187855263,-500.0,0.00030164,7]
[364660800,1749187855272,-174.4126255,0.00030164,7]
[364660801,1749187855282,-491.90229553,0.00030164,7]
[364660802,1749187855291,-482.4439344,0.00030164,7]
[364660803,1749187855301,-481.92158103,0.00030164,7]
[364660804,1749187855310,-480.0,0.00030164,7]
[364660805,1749187855320,-480.0,0.00030164,7]
[364660806,1749187855332,-480.0,0.00030164,7]
[364660807,1749187855342,-484.6400219,0.00030164,7]
[364660808,1749187855351,-480.0,0.00030164,7]
[364660809,1749187855361,-480.0,0.00030164,7]
[364660810,1749187855371,-480.0,0.00030164,7]
[364660811,1749187855380,-480.0,0.00030164,7]
[364660812,1749187855390,-480.0,0.00030164,7]
[364660813,1749187855400,-1000.0,0.00030164,7]
[364660814,1749187855412,-480.0,0.00030164,7]
[364660815,1749187855422,-480.0,0.00030164,7]
[364660816,1749187855432,-480.0,0.00030164,7]
[364660817,1749187855441,-485.40579763,0.00030164,7]
[364660818,1749187855451,-480.0,0.00030164,7]
[364660819,1749187855460,-486.50299451,0.00030164,7]
[364660820,1749187855470,-528.03379447,0.00030164,7]
[364660821,1749187855480,-480.0,0.00030164,7]
[364660822,1749187855489,-505.99725992,0.00030164,7]
[364660823,1749187855499,-480.0,0.00030164,7]
[364660824,1749187855508,-480.0,0.00030164,7]
[364660825,1749187855517,-480.0,0.00030164,7]
[364660826,1749187855528,-484.28061092,0.00030164,7]
[364660827,1749187855537,-483.31325092,0.00030164,7]
[364660828,1749187855547,-162.714516,0.00030164,7]
[364660829,1749187855556,-420.0,0.00030164,7]
[364660830,1749187855567,-480.0,0.00030164,7]
[364660831,1749187855577,-480.0,0.00030164,7]
[364660832,1749187855587,-480.0,0.00030164,7]
[364660833,1749187855596,-480.0,0.00030164,7]
[364660834,1749187855606,-480.0,0.00030164,7]
[364660835,1749187855615,-507.47543912,0.00030164,7]
[364660836,1749187855624,-501.22796512,0.00030164,7]
[364660837,1749187855634,-480.0,0.00030164,7]
[364660838,1749187855643,-480.0,0.00030164,7]
[364660839,1749187855654,-480.0,0.00030164,7]
[364660840,1749187855663,-480.0,0.00030164,7]
[364660841,1749187855672,-480.0,0.00030164,7]
[364660842,1749187855682,-480.0,0.00030164,7]
[364660843,1749187855691,-338.86547354,0.00030164,7]
[364660844,1749187855702,-480.0,0.00030164,7]
[364660845,1749187855711,-480.0,0.00030164,7]
[364660846,1749187855721,-480.0,0.00030164,7]
[364660847,1749187855730,-640.48,0.00030164,7]
[364660848,1749187855739,-480.0,0.00030164,7]
[364660849,1749187855749,-480.0,0.00030164,7]
[364660850,1749187855759,-483.11270371,0.00030164,7]
[364660851,1749187855768,-602.45845138,0.00030164,7]
[364660852,1749187855778,-482.08396667,0.00030164,7]
[364660853,1749187855787,-151.0,0.00030164,7]
[364660854,1749187855796,-480.0,0.00030164,7]
[364660855,1749187855806,-783.77,0.00030164,7]
[364660856,1749187855815,-151.0,0.00030164,7]
[364660857,1749187855824,-151.0,0.00030164,7]
[364660858,1749187855834,-480.0,0.00030164,7]
[364660859,1749187855844,-151.0,0.00030164,7]
[364660860,1749187855855,-151.0,0.00030164,7]
[364660861,1749187855864,-480.0,0.00030164,7]
[364660862,1749187855873,-151.0,0.00030164,7]
[364660863,1749187855883,-443.50280836,0.00030164,7]
[364660864,1749187855892,-151.0,0.00030164,7]
[364660865,1749187855901,-480.0,0.00030164,7]
[364660866,1749187855911,-483.38149312,0.00030164,7]
[364660867,1749187855920,-151.0,0.00030164,7]
[364660868,1749187855931,-151.0,0.00030164,7]
[364660869,1749187855943,-151.0,0.00030164,7]
[364660870,1749187855958,-480.0,0.00030164,7]
[364660871,1749187855969,-480.0,0.00030164,7]
[364660872,1749187855978,-480.0,0.00030164,7]
[364660873,1749187855988,-151.0,0.00030164,7]
[364660874,1749187855997,-151.0,0.00030164,7]
[364660875,1749187856006,-481.26475001,0.00030164,7]
[364660876,1749187856015,-480.0,0.00030164,7]
[364660877,1749187856024,-156.832976,0.00030164,7]
[364660878,1749187856033,-475.62597457,0.00030164,7]
[364660879,1749187856042,-603.85,0.00030164,7]
[364660880,1749187856052,-480.0,0.00030164,7]
[364660881,1749187856061,-480.0,0.00030164,7]
[364660882,1749187856070,-480.0,0.00030164,7]
[364660883,1749187856079,-480.0,0.00030164,7]
[364660884,1749187856088,-480.0,0.00030164,7]
[364660885,1749187856098,-428.0309045,0.00030164,7]
[364660886,1749187856109,-480.0,0.00030164,7]
[364660887,1749187856118,-480.0,0.00030164,7]
[364660888,1749187856128,-429.53819856,0.00030164,7]
[364660889,1749187856137,-480.0,0.00030164,7]
[364660890,1749187856147,-480.0,0.00030164,7]
[364660891,1749187856156,-627.85645931,0.00030164,7]
[364660892,1749187856165,-480.0,0.00030164,7]
[364660893,1749187856174,-480.0,0.00030164,7]
[364660894,1749187856184,-480.0,0.00030164,7]
[364660895,1749187856193,-480.0,0.00030164,7]
[364660896,1749187856202,-774.54,0.00030164,7]
[364660897,1749187856211,-480.0,0.00030164,7]
[364660898,1749187856220,-488.39739566,0.00030164,7]
[364660899,1749187856229,-480.0,0.00030164,7]
[364660900,1749187856238,-515.0579445,0.00030164,7]
[364660901,1749187856247,-480.0,0.00030164,7]
[364660902,1749187856256,-480.0,0.00030164,7]
[364660903,1749187856266,-480.0,0.00030164,7]
[364660904,1749187856275,-480.0,0.00030164,7]
[364660905,1749187856284,-480.0,0.00030164,7]
[364660906,1749187856294,-1075.97,0.00030164,7]
[364660907,1749187856305,-480.0,0.00030164,7]
[364660908,1749187856315,-480.0,0.00030164,7]
[364660909,1749187856324,-932.89,0.00030164,7]
[364660910,1749187856338,-480.0,0.00030164,7]
[364660911,1749187856347,-480.0,0.00030164,7]
[364660912,1749187856357,-544.99,0.00030164,7]
[364660913,1749187856366,-485.89271139,0.00030164,7]
[364660914,1749187856377,-480.0,0.00030164,7]
[364660915,1749187856386,-460.0,0.00030164,7]
[364660916,1749187856395,-480.0,0.00030164,7]
[364660917,1749187856405,-480.0,0.00030164,7]
[364660918,1749187856414,-571.8,0.00030164,7]
[364660919,1749187856424,-664.5,0.00030164,7]
[364660920,1749187856434,-480.0,0.00030164,7]
[364660921,1749187856444,-349.027176,0.00030164,7]
[364660922,1749187856454,-349.027176,0.00030164,7]
[364660923,1749187856465,-480.0,0.00030164,7]
[364660924,1749187856474,-413.45219751,0.00030164,7]
[364660925,1749187856483,-349.027176,0.00030164,7]
[364660926,1749187856494,-490.57867284,0.00030164,7]
[364660927,1749187856503,-349.027176,0.00030164,7]
[364660928,1749187856513,-934.27,0.00030164,7]
[364660929,1749187856523,-349.027176,0.00030164,7]
[364660930,1749187856532,-349.027176,0.00030164,7]
[364660931,1749187856542,-480.0,0.00030164,7]
[364660932,1749187856552,-349.027176,0.00030164,7]
[364660933,1749187856561,-480.0,0.00030164,7]
[364660934,1749187856572,-641.56807235,0.00030164,30]
[364660935,1749187856581,-349.027176,0.00030164,7]
[364660936,1749187856591,-349.027176,0.00030164,7]
[364660937,1749187856600,-156.865892,0.00030164,7]
[364660938,1749187856609,-349.027176,0.00030164,7]
[364660939,1749187856619,-156.865892,0.00030164,7]
[364660940,1749187856628,-349.027176,0.00030164,7]
[364660941,1749187856637,-349.027176,0.00030164,7]
[364660942,1749187856646,-156.865892,0.00030164,7]
[364660943,1749187856655,-349.027176,0.00030164,7]
[364660944,1749187856665,-156.865892,0.00030164,7]
[364660945,1749187856674,-349.027185,0.00030164,7]
[364660946,1749187856684,-1292.94,0.00030164,7]
[364660947,1749187856693,-156.865892,0.00030164,7]
[364660948,1749187856703,-480.0,0.00030164,7]
[364660949,1749187856712,-156.865892,0.00030164,7]
[364660950,1749187856722,-156.865892,0.00030164,7]
[364660951,1749187856733,-480.0,0.00030164,7]
[364660952,1749187856743,-488.24189372,0.00030164,7]
[364660953,1749187856754,-484.15756408,0.00030164,7]
[364660954,1749187856763,-480.0,0.00030164,7]
[364660955,1749187856774,-156.865892,0.00030164,7]
[364660956,1749187856785,-1107.42,0.00030164,7]
[364660957,1749187856796,-156.865892,0.00030164,7]
[364660958,1749187856805,-156.865892,0.00030164,7]
[364660959,1749187856815,-480.0,0.00030164,7]
[364660960,1749187856825,-151.0,0.00030164,7]
[364660961,1749187856834,-156.865892,0.00030164,7]
[364660962,1749187856844,-480.0,0.00030164,7]
[364660963,1749187856854,-480.0,0.00030164,7]
[364660964,1749187856863,-156.865892,0.00030164,7]
[364660965,1749187856873,-156.865892,0.00030164,7]
[364660966,1749187856883,-480.0,0.00030164,7]
[364660967,1749187856892,-156.865895,0.00030164,7]
[364660968,1749187856903,-486.41058017,0.00030164,7]
[364660969,1749187856913,-480.0,0.00030164,7]
[364660970,1749187856923,-818.41,0.00030164,7]
[364660971,1749187856933,-160.506943,0.00030164,7]
[364660972,1749187856943,-480.0,0.00030164,7]
[364660973,1749187856955,-489.10900614,0.00030164,7]
[364660974,1749187856964,-534.95,0.00030164,7]
[364660975,1749187856974,-486.91190824,0.00030164,7]
[364660976,1749187856983,-420.0,0.00030164,7]
[364660977,1749187856995,-480.0,0.00030164,7]
[364660978,1749187857009,-480.0,0.00030164,7]
[364660979,1749187857018,-480.0,0.00030164,7]
[364660980,1749187857028,-480.0,0.00030164,7]
[364660981,1749187857037,-905.44,0.00030164,7]
[364660982,1749187857047,-480.0,0.00030164,7]
[364660983,1749187857056,-480.0,0.00030164,7]
[364660984,1749187857066,-370.26493977,0.00030164,7]
[364660985,1749187857075,-480.0,0.00030164,7]
[364660986,1749187857084,-480.0,0.00030164,7]
[364660987,1749187857093,-480.0,0.00030164,7]
[364660988,1749187857103,-480.0,0.00030164,7]
[364660989,1749187857113,-480.0,0.00030164,7]
[364660990,1749187857123,-357.83408628,0.00030164,7]
[364660991,1749187857132,-480.0,0.00030164,7]
[364660992,1749187857142,-480.0,0.00030164,7]
[364660993,1749187857151,-490.32581632,0.00030164,7]
[364660994,1749187857161,-547.32,0.00030164,7]
[364660995,1749187857171,-480.0,0.00030164,7]
[364660996,1749187857181,-480.0,0.00030164,7]
[364660997,1749187857190,-480.0,0.00030164,7]
[364660998,1749187857200,-431.39865136,0.00030164,7]
[364660999,1749187857211,-480.0,0.00030164,7]
[364661000,1749187857221,-480.0,0.00030164,7]
[364661001,1749187857232,-480.0,0.00030164,7]
[364661002,1749187857241,-480.0,0.00030164,7]
[364661003,1749187857251,-484.84353441,0.00030164,7]
[364661004,1749187857261,-480.0,0.00030164,7]
[364661005,1749187857271,-480.0,0.00030164,7]
[364661006,1749187857281,-480.0,0.00030164,7]
[364661007,1749187857292,-480.0,0.00030164,7]
[364661008,1749187857302,-480.0,0.00030164,7]
[364661009,1749187857312,-480.0,0.00030164,7]
[364661010,1749187857322,-1294.472743,0.00030164,7]
[364661011,1749187857335,-943.64,0.00030164,7]
[364661012,1749187857345,-1294.472743,0.00030164,7]
[364661013,1749187857356,-467.6646072,0.00030164,7]
[364661014,1749187857365,-480.0,0.00030164,7]
[364661015,1749187857376,-480.0,0.00030164,7]
[364661016,1749187857386,-1294.472743,0.00030164,7]
[364661017,1749187857396,-481.42441416,0.00030164,7]
[364661018,1749187857407,-1294.472743,0.00030164,7]
[364661019,1749187857416,-1294.472743,0.00030164,7]
[364661020,1749187857426,-403.529584,0.00030164,7]
[364661021,1749187857436,-458.6407208,0.00030164,7]
[364661022,1749187857446,-1294.472743,0.00030164,7]
[364661023,1749187857456,-403.529584,0.00030164,7]
[364661024,1749187857466,-1294.472743,0.00030164,7]
[364661025,1749187857476,-403.529584,0.00030164,7]
[364661026,1749187857486,-480.0,0.00030164,7]
[364661027,1749187857496,-480.0,0.00030164,7]
[364661028,1749187857506,-480.89807511,0.00030164,7]
[364661029,1749187857515,-403.529584,0.00030164,7]
[364661030,1749187857525,-403.529584,0.00030164,7]
[364661031,1749187857536,-480.0,0.00030164,7]